fUSD/lending_fUSD_20250811
["ID","MTS","AMOUNT","RATE_DAILY","PERIOD"]
[378566944,1754913143283,-705.32,0.00018543,2]
[378566945,1754913143293,-400.0,0.00018543,2]
[378566946,1754913143303,-1171.25,0.00018543,2]
[378566947,1754913143314,-400.0,0.00018543,2]
[378566948,1754913143324,-847.35,0.00018543,2]
[378566949,1754913143334,-1000.0,0.00018543,2]
[378566950,1754913143344,-581.39,0.00018543,2]
[378566951,1754913143354,-248.01511389,0.00018543,2]
[378566952,1754913143363,-400.0,0.00018543,2]
[378566953,1754913143373,-1319.92,0.00018543,2]
[378566954,1754913143382,-230.26838853,0.00018543,2]
[378566955,1754913143391,-400.0,0.00018543,2]
[378566956,1754913143401,-542.81,0.00018543,2]
[378566957,1754913143410,-400.0,0.00018543,2]
[378566958,1754913143420,-400.0,0.00018543,2]
[378566959,1754913143429,-424.8,0.00018543,2]
[378566960,1754913143439,-400.0,0.00018543,2]
[378566961,1754913143448,-678.46,0.00018543,2]
[378566962,1754913143458,-400.0,0.00018543,2]
[378566963,1754913143467,-400.0,0.00018543,2]
[378566964,1754913143477,-400.0,0.00018543,2]
[378566965,1754913143487,-866.33,0.00018543,2]
[378566966,1754913143496,-400.0,0.00018543,2]
[378566967,1754913143506,-404.54,0.00018543,2]
[378566968,1754913143515,-400.0,0.00018543,2]
[378566969,1754913143525,-1557.21,0.00018543,2]
[378566970,1754913143534,-746.59,0.00018543,2]
[378566971,1754913143545,-972.72,0.00018543,2]
[378566972,1754913143554,-938.79,0.00018543,2]
[378566973,1754913143564,-681.35,0.00018543,2]
[378566974,1754913143574,-400.0,0.00018543,2]
[378566975,1754913143584,-400.0,0.00018543,2]
[378566976,1754913143593,-1311.69,0.00018543,2]
[378566977,1754913143603,-505.11,0.00018543,2]
[378566978,1754913143613,-400.0,0.00018543,2]
[378566979,1754913143622,-1492.93,0.00018543,2]
[378566980,1754913143632,-400.0,0.00018543,2]
[378566981,1754913143642,-1003.89,0.00018543,2]
[378566982,1754913143652,-730.49,0.00018543,2]
[378566983,1754913143663,-1885.29,0.00018543,2]
[378566984,1754913143673,-400.0,0.00018543,2]
[378566985,1754913143683,-400.0,0.00018543,2]
[378566986,1754913143692,-2097.45,0.00018543,2]
[378566987,1754913143701,-417.63,0.00018543,2]
[378566988,1754913143711,-2920.65,0.00018543,2]
[378566989,1754913143720,-805.82,0.00018543,2]
[378566990,1754913143730,-400.0,0.00018543,2]
[378566991,1754913143739,-788.53,0.00018543,2]
[378566992,1754913143749,-1491.0,0.00018543,2]
[378566993,1754913143759,-578.09,0.00018543,2]
[378566994,1754913143768,-1580.72,0.00018543,2]
[378566995,1754913143777,-1959.0,0.00018543,2]
[378566996,1754913143786,-400.0,0.00018543,2]
[378566997,1754913143795,-618.06,0.00018543,2]
[378566998,1754913143804,-214.66809603,0.00018543,2]
[378566999,1754913143814,-1137.38,0.00018543,2]
[378567000,1754913143824,-5923.04,0.00018543,2]
[378567001,1754913143834,-1732.92,0.00018543,2]
[378567002,1754913143843,-887.67,0.00018543,2]
[378567003,1754913143853,-400.0,0.00018543,2]
[378567004,1754913143862,-1061.76,0.00018543,2]
[378567005,1754913143872,-835.58,0.00018543,2]
[378567006,1754913143882,-1830.2,0.00018543,2]
[378567007,1754913143891,-953.47,0.00018543,2]
[378567008,1754913143901,-400.0,0.00018543,2]
[378567009,1754913143911,-7856.95,0.00018543,2]
[378567010,1754913143921,-1326.05,0.00018543,2]
[378567011,1754913143931,-1090.22,0.00018543,2]
[378567012,1754913143941,-867.25,0.00018543,2]
[378567013,1754913143951,-400.0,0.00018543,2]
[378567014,1754913143960,-921.81,0.00018543,2]
[378567015,1754913143970,-400.0,0.00018543,2]
[378567016,1754913143980,-862.26,0.00018543,2]
[378567017,1754913143990,-1071.67,0.00018543,2]
[378567018,1754913144000,-1367.79,0.00018543,2]
[378567019,1754913144009,-762.59,0.00018543,2]
[378567020,1754913144019,-834.48,0.00018543,2]
[378567021,1754913144030,-490.48213216,0.00018543,2]
[378567022,1754913144039,-1676.78,0.00018543,2]
[378567023,1754913144049,-494.42,0.00018543,2]
[378567024,1754913144060,-400.0,0.00018543,2]
[378567025,1754913144071,-571.53,0.00018543,2]
[378567026,1754913144081,-1331.18,0.00018543,2]
[378567027,1754913144091,-404.79,0.00018543,2]
[378567028,1754913144102,-3224.09,0.00018543,2]
[378567029,1754913144112,-569.83,0.00018543,2]
[378567030,1754913144122,-2108.73,0.00018543,2]
[378567031,1754913144132,-2950.39,0.00018543,2]
[378567032,1754913144143,-400.0,0.00018543,2]
[378567033,1754913144153,-1496.63,0.00018543,2]
[378567034,1754913144164,-1631.44,0.00018543,2]
[378567035,1754913144174,-400.0,0.00018543,2]
[378567036,1754913144184,-237.296598,0.00018543,2]
[378567037,1754913144194,-1796.59,0.00018543,2]
[378567038,1754913144204,-400.0,0.00018543,2]
[378567039,1754913144214,-1954.18,0.00018543,2]
[378567040,1754913144224,-7055.23,0.00018543,2]
[378567041,1754913144234,-1953.7,0.00018543,2]
[378567042,1754913144244,-1959.6,0.00018543,2]
[378567043,1754913144254,-873.2,0.00018543,2]
[378567044,1754913144268,-1387.49,0.00018543,2]
[378567045,1754913144278,-2235.63,0.00018543,2]
[378567046,1754913144288,-400.0,0.00018543,2]
[378567047,1754913144299,-2605.86,0.00018543,2]
[378567048,1754913144309,-474.22432772,0.00018543,2]
[378567049,1754913144319,-2389.88,0.00018543,2]
[378567050,1754913144330,-872.7,0.00018543,2]
[378567051,1754913144340,-1506.75,0.00018543,2]
[378567052,1754913144351,-1438.79,0.00018543,2]
[378567053,1754913144361,-1393.05,0.00018543,2]
[378567054,1754913144370,-400.0,0.00018543,2]
[378567055,1754913144380,-1049.0,0.00018543,2]
[378567056,1754913144390,-2289.57,0.00018543,2]
[378567057,1754913144399,-2125.89,0.00018543,2]
[378567058,1754913144410,-501.78,0.00018543,2]
[378567059,1754913144420,-1348.98,0.00018543,2]
[378567060,1754913144430,-1106.35,0.00018543,2]
[378567061,1754913144440,-1712.29,0.00018543,2]
[378567062,1754913144450,-649.39,0.00018543,2]
[378567063,1754913144460,-744.08,0.00018543,2]
[378567064,1754913144470,-2029.64,0.00018543,2]
[378567065,1754913144480,-1447.39,0.00018543,2]
[378567066,1754913144489,-1696.76,0.00018543,2]
[378567067,1754913144498,-3975.5,0.00018543,2]
[378567068,1754913144508,-400.0,0.00018543,2]
[378567069,1754913144517,-734.33,0.00018543,2]
[378567070,1754913144527,-530.76,0.00018543,2]
[378567071,1754913144536,-439.15,0.00018543,2]
[378567072,1754913144546,-1536.74,0.00018543,2]
[378567073,1754913144556,-778.12,0.00018543,2]
[378567074,1754913144566,-1845.62,0.00018543,2]
[378567075,1754913144576,-574.84,0.00018543,2]
[378567076,1754913144586,-1648.11,0.00018543,2]
[378567077,1754913144596,-1137.58,0.00018543,2]
[378567078,1754913144606,-1689.44,0.00018543,2]
[378567079,1754913144616,-1000.45,0.00018543,2]
[378567080,1754913144626,-1628.59,0.00018543,2]
[378567081,1754913144635,-3162.45,0.00018543,2]
[378567082,1754913144645,-916.42,0.00018543,2]
[378567083,1754913144655,-951.52,0.00018543,2]
[378567084,1754913144666,-1036.79,0.00018543,2]
[378567085,1754913144676,-4094.74,0.00018543,2]
[378567086,1754913144686,-445.03,0.00018543,2]
[378567087,1754913144696,-561.9,0.00018543,2]
[378567088,1754913144706,-1757.59,0.00018543,2]
[378567089,1754913144716,-4776.03,0.00018543,2]
[378567090,1754913144726,-3424.67,0.00018543,2]
[378567091,1754913144736,-441.43,0.00018543,2]
[378567092,1754913144746,-1865.46,0.00018543,2]
[378567093,1754913144756,-4516.83,0.00018543,2]
[378567094,1754913144766,-851.6,0.00018543,2]
[378567095,1754913144776,-3740.45,0.00018543,2]
[378567096,1754913144786,-400.0,0.00018543,2]
[378567097,1754913144795,-4648.91,0.00018543,2]
[378567098,1754913144804,-3770.26,0.00018543,2]
[378567099,1754913144814,-1381.04,0.00018543,2]
[378567100,1754913144824,-400.0,0.00018543,2]
[378567101,1754913144833,-1807.77,0.00018543,2]
[378567102,1754913144844,-1945.82,0.00018543,2]
[378567103,1754913144854,-400.0,0.00018543,2]
[378567104,1754913144863,-1876.26,0.00018543,2]
[378567105,1754913144873,-2063.2,0.00018543,2]
[378567106,1754913144884,-504.21668824,0.00018543,2]
[378567107,1754913144893,-1978.2,0.00018543,2]
[378567108,1754913144903,-521.24,0.00018543,2]
[378567109,1754913144915,-463.37,0.00018543,2]
[378567110,1754913144929,-2356.45,0.00018543,2]
[378567111,1754913144940,-2155.4,0.00018543,2]
[378567112,1754913144950,-492.39,0.00018543,2]
[378567113,1754913144961,-2004.67,0.00018543,2]
[378567114,1754913144971,-1158.32,0.00018543,2]
[378567115,1754913144980,-2736.07,0.00018543,2]
[378567116,1754913144990,-1467.0,0.00018543,2]
[378567117,1754913145000,-2513.22,0.00018543,2]
[378567118,1754913145011,-734.51,0.00018543,2]
[378567119,1754913145021,-565.83,0.00018543,2]
[378567120,1754913145032,-819.78,0.00018543,2]
[378567121,1754913145043,-1082.13,0.00018543,2]
[378567122,1754913145054,-1712.61,0.00018543,2]
[378567123,1754913145064,-1721.6,0.00018543,2]
[378567124,1754913145074,-1066.33,0.00018543,2]
[378567125,1754913145085,-514.05,0.00018543,2]
[378567126,1754913145095,-2649.89,0.00018543,2]
[378567127,1754913145104,-400.0,0.00018543,2]
[378567128,1754913145114,-540.88,0.00018543,2]
[378567129,1754913145124,-589.15,0.00018543,2]
[378567130,1754913145134,-400.0,0.00018543,2]
[378567131,1754913145144,-507.53,0.00018543,2]
[378567132,1754913145154,-553.54,0.00018543,2]
[378567133,1754913145166,-7631.99,0.00018543,2]
[378567134,1754913145176,-838.96,0.00018543,2]
[378567135,1754913145186,-400.0,0.00018543,2]
[378567136,1754913145197,-400.0,0.00018543,2]
[378567137,1754913145206,-1649.72,0.00018543,2]
[378567138,1754913145217,-400.0,0.00018543,2]
[378567139,1754913145489,-1026.97,0.00018543,2]
[378567140,1754913145511,-983.44,0.00018543,2]
[378567141,1754913145527,-435.35,0.00018543,2]
[378567142,1754913145538,-2058.27,0.00018543,2]
[378567143,1754913145549,-400.0,0.00018543,2]
[378567144,1754913145559,-334.7458501,0.00018543,2]
[378567145,1754913145570,-2584.26,0.00018543,2]
[378567146,1754913145581,-1261.13,0.00018543,2]
[378567147,1754913145591,-3887.95,0.00018543,2]
[378567148,1754913145601,-400.0,0.00018543,2]
[378567149,1754913145610,-2959.65,0.00018543,2]
[378567150,1754913145620,-824.91,0.00018543,2]
[378567151,1754913145630,-400.0,0.00018543,2]
[378567152,1754913145640,-1382.83,0.00018543,2]
[378567153,1754913145649,-1832.99,0.00018543,2]
[378567154,1754913145659,-11775.9,0.00018544,2]
[378567155,1754913145675,-400.0,0.00018544,2]
[378567156,1754913145684,-400.0,0.00018544,2]
[378567157,1754913145693,-761.69,0.00018544,2]
[378567158,1754913145703,-1358.43,0.00018544,2]
[378567159,1754913145712,-436.61038589,0.00018544,2]
[378567160,1754913145722,-400.0,0.00018544,2]
[378567161,1754913145731,-400.0,0.00018544,2]
[378567162,1754913145741,-400.0,0.00018544,2]
[378567163,1754913145751,-1946.54,0.00018544,2]
[378567164,1754913145760,-2429.72,0.00018544,2]
[378567165,1754913145769,-453.96,0.00018544,2]
[378567166,1754913145779,-400.0,0.00018544,2]
[378567167,1754913145788,-1185.2,0.00018544,2]
[378567168,1754913145797,-609.39,0.00018544,2]
[378567169,1754913145807,-778.26,0.00018544,2]
[378567170,1754913145816,-1224.12,0.00018544,2]
[378567171,1754913145825,-2904.7,0.00018544,2]
[378567172,1754913145835,-717.2,0.00018544,2]
[378567173,1754913145844,-6259.19,0.00018544,2]
[378567174,1754913145855,-1777.62,0.00018544,2]
[378567175,1754913145864,-866.66,0.00018544,2]
[378567176,1754913145874,-1553.13,0.00018544,2]
[378567177,1754913145884,-400.0,0.00018544,2]
[378567178,1754913145894,-490.02,0.00018544,2]
[378567179,1754913145904,-400.0,0.00018544,2]
[378567180,1754913145914,-729.89,0.00018544,2]
[378567181,1754913145924,-933.13,0.00018544,2]
[378567182,1754913145934,-400.0,0.00018544,2]
[378567183,1754913145944,-2159.12,0.00018544,2]
[378567184,1754913145954,-400.0,0.00018544,2]
[378567185,1754913145964,-3049.08,0.00018544,2]
[378567186,1754913145973,-1644.46,0.00018544,2]
[378567187,1754913145983,-2839.76,0.00018544,2]
[378567188,1754913145992,-263.80375607,0.00018544,2]
[378567189,1754913146003,-1841.28,0.00018544,2]
[378567190,1754913146012,-400.0,0.00018544,2]
[378567191,1754913146022,-667.45,0.00018544,2]
[378567192,1754913146032,-2730.28,0.00018544,2]
[378567193,1754913146042,-1203.04,0.00018544,2]
[378567194,1754913146051,-4574.56,0.00018544,2]
[378567195,1754913146062,-1161.97,0.00018544,2]
[378567196,1754913146071,-2769.67,0.00018544,2]
[378567197,1754913146082,-897.46,0.00018544,2]
[378567198,1754913146092,-2073.14,0.00018544,2]
[378567199,1754913146102,-1608.19,0.00018544,2]
[378567200,1754913146112,-1068.52,0.00018544,2]
[378567201,1754913146122,-400.0,0.00018544,2]
[378567202,1754913146131,-2151.59,0.00018544,2]
[378567203,1754913146141,-1463.39,0.00018544,2]
[378567204,1754913146151,-1630.34,0.00018544,2]
[378567205,1754913146160,-4398.89,0.00018544,2]
[378567206,1754913146172,-2765.08,0.00018544,2]
[378567207,1754913146182,-2201.17,0.00018544,2]
[378567208,1754913146192,-1343.77,0.00018544,2]
[378567209,1754913146202,-886.91,0.00018544,2]
[378567210,1754913146212,-3353.66,0.00018544,2]
[378567211,1754913146222,-2001.78,0.00018544,2]
[378567212,1754913146232,-920.03,0.00018544,2]
[378567213,1754913146241,-2524.9,0.00018544,2]
[378567214,1754913146251,-2782.61,0.00018544,2]
[378567215,1754913146265,-1737.2,0.00018544,2]
[378567216,1754913146275,-824.02,0.00018544,2]
[378567217,1754913146285,-792.57,0.00018544,2]
[378567218,1754913146296,-1651.26,0.00018544,2]
[378567219,1754913146307,-5566.48,0.00018544,2]
[378567220,1754913146317,-1912.08,0.00018544,2]
[378567221,1754913146326,-859.38,0.00018544,2]
[378567222,1754913146339,-2915.81,0.00018544,2]
[378567223,1754913146354,-2989.76,0.00018544,2]
[378567224,1754913146363,-1246.63,0.00018544,2]
[378567225,1754913146373,-2770.87,0.00018544,2]
[378567226,1754913146384,-1848.47,0.00018544,2]
[378567227,1754913146393,-2797.11,0.00018544,2]
[378567228,1754913146403,-2310.09,0.00018544,2]
[378567229,1754913146419,-1434.78,0.00018544,2]
[378567230,1754913146429,-964.74,0.00018544,2]
[378567231,1754913146439,-1229.39,0.00018544,2]
[378567232,1754913146449,-1197.11,0.00018544,2]
[378567233,1754913146458,-3106.15,0.00018544,2]
[378567234,1754913146468,-715.89,0.00018544,2]
[378567235,1754913146478,-4413.0,0.00018544,2]
[378567236,1754913146488,-1019.63,0.00018544,2]
[378567237,1754913146498,-1289.6,0.00018544,2]
[378567238,1754913146508,-1053.69,0.00018544,2]
[378567239,1754913146518,-1021.38,0.00018544,2]
[378567240,1754913146527,-2236.64,0.00018544,2]
[378567241,1754913146538,-1225.59,0.00018544,2]
[378567242,1754913146548,-990.51,0.00018544,2]
[378567243,1754913146558,-2224.71,0.00018544,2]
[378567244,1754913146569,-647.02,0.00018544,2]
[378567245,1754913146579,-1527.51,0.00018544,2]
[378567246,1754913146589,-1206.91,0.00018544,2]
[378567247,1754913146598,-3885.65,0.00018544,2]
[378567248,1754913146608,-1000.0,0.00018544,2]
[378567249,1754913146618,-1337.96,0.00018544,2]
[378567250,1754913146628,-3939.07,0.00018544,2]
[378567251,1754913146638,-444.27,0.00018544,2]
[378567252,1754913146648,-171.26,0.00018544,2]
[378567253,1754913146658,-584.75,0.00018544,2]
[378567254,1754913146669,-851.1,0.00018544,2]
[378567255,1754913146679,-5655.06,0.00018544,2]
[378567256,1754913146689,-3247.91,0.00018544,2]
[378567257,1754913146698,-473.14,0.00018545,2]
[378567258,1754913146709,-400.0,0.00018545,2]
[378567259,1754913146718,-785.69,0.00018545,2]
[378567260,1754913146728,-403.34364337,0.00018545,2]
[378567261,1754913146738,-610.16,0.00018545,2]
[378567262,1754913146747,-500.46,0.00018545,2]
[378567263,1754913146757,-568.15,0.00018545,2]
[378567264,1754913146766,-400.0,0.00018545,2]
[378567265,1754913146776,-1197.3,0.00018545,2]
[378567266,1754913146785,-1110.34,0.00018545,2]
[378567267,1754913146795,-784.14,0.00018545,2]
[378567268,1754913146803,-400.0,0.00018545,2]
[378567269,1754913146813,-881.7,0.00018545,2]
[378567270,1754913146823,-531.36,0.00018545,2]
[378567271,1754913146832,-400.0,0.00018545,2]
[378567272,1754913146841,-1292.81,0.00018545,2]
[378567273,1754913146850,-818.44,0.00018545,2]
[378567274,1754913146860,-1011.15,0.00018545,2]
[378567275,1754913146869,-1031.23,0.00018545,2]
[378567276,1754913146879,-400.0,0.00018545,2]
[378567277,1754913146889,-400.0,0.00018545,2]
[378567278,1754913146899,-400.0,0.00018545,2]
[378567279,1754913146908,-671.36,0.00018545,2]
[378567280,1754913146919,-490.88,0.00018545,2]
[378567281,1754913146929,-1064.9,0.00018545,2]
[378567282,1754913146939,-905.17,0.00018545,2]
[378567283,1754913146949,-892.04,0.00018545,2]
[378567284,1754913146958,-336.45398913,0.00018545,2]
[378567285,1754913146967,-400.0,0.00018545,2]
[378567286,1754913146977,-400.0,0.00018545,2]
[378567287,1754913146987,-942.14,0.00018545,2]
[378567288,1754913146997,-1106.68,0.00018545,2]
[378567289,1754913147007,-406.30135456,0.00018545,2]
[378567290,1754913147016,-400.0,0.00018545,2]
[378567291,1754913147026,-400.0,0.00018545,2]
[378567292,1754913147036,-400.0,0.00018545,2]
[378567293,1754913147046,-400.0,0.00018545,2]
[378567294,1754913147056,-400.0,0.00018545,2]
[378567295,1754913147066,-400.0,0.00018545,2]
[378567296,1754913147075,-1052.13,0.00018545,2]
[378567297,1754913147085,-400.0,0.00018545,2]
[378567298,1754913147095,-400.0,0.00018545,2]
[378567299,1754913147105,-1101.67,0.00018545,2]
[378567300,1754913147115,-797.74,0.00018545,2]
[378567301,1754913147124,-509.05,0.00018545,2]
[378567302,1754913147135,-867.17,0.00018545,2]
[378567303,1754913147145,-178.10694203,0.00018545,2]
[378567304,1754913147155,-461.42,0.00018545,2]
[378567305,1754913147165,-400.0,0.00018545,2]
[378567306,1754913147174,-1324.87,0.00018545,2]
[378567307,1754913147185,-383.71645957,0.00018545,2]
[378567308,1754913147195,-400.0,0.00018545,2]
[378567309,1754913147205,-421.63,0.00018545,2]
[378567310,1754913147214,-741.06,0.00018545,2]
[378567311,1754913147224,-1082.33,0.00018545,2]
[378567312,1754913147234,-1024.95,0.00018545,2]
[378567313,1754913147243,-1071.51,0.00018545,2]
[378567314,1754913147253,-390.05177628,0.00018545,2]
[378567315,1754913147265,-400.0,0.00018545,2]
[378567316,1754913147275,-697.27,0.00018545,2]
[378567317,1754913147284,-410.96,0.00018545,2]
[378567318,1754913147295,-400.0,0.00018545,2]
[378567319,1754913147304,-400.0,0.00018545,2]
[378567320,1754913147314,-400.0,0.00018545,2]
[378567321,1754913147324,-400.0,0.00018545,2]
[378567322,1754913147333,-400.0,0.00018545,2]
[378567323,1754913147343,-400.0,0.00018545,2]
[378567324,1754913147353,-400.0,0.00018545,2]
[378567325,1754913147362,-518.43,0.00018545,2]
[378567326,1754913147372,-400.0,0.00018545,2]
[378567327,1754913147381,-400.0,0.00018545,2]
[378567328,1754913147391,-400.0,0.00018545,2]
[378567329,1754913147400,-629.24,0.00018545,2]
[378567330,1754913147410,-472.02,0.00018545,2]
[378567331,1754913147423,-400.0,0.00018545,2]
[378567332,1754913147433,-400.0,0.00018545,2]
[378567333,1754913147443,-613.38,0.00018545,2]
[378567334,1754913147453,-400.0,0.00018545,2]
[378567335,1754913147463,-519.76,0.00018545,2]
[378567336,1754913147473,-901.95,0.00018545,2]
[378567337,1754913147483,-647.41,0.00018545,2]
[378567338,1754913147493,-400.0,0.00018545,2]
[378567339,1754913147502,-400.0,0.00018545,2]
[378567340,1754913147512,-400.0,0.00018545,2]
[378567341,1754913147521,-400.0,0.00018545,2]
[378567342,1754913147530,-400.0,0.00018545,2]
[378567343,1754913147540,-572.02,0.00018545,2]
[378567344,1754913147550,-631.5,0.00018545,2]
[378567345,1754913147560,-498.49,0.00018545,2]
[378567346,1754913147570,-400.0,0.00018545,2]
[378567347,1754913147579,-483.81,0.00018545,2]
[378567348,1754913147592,-714.46,0.00018545,2]
[378567349,1754913147601,-400.0,0.00018545,2]
[378567350,1754913147611,-433.36,0.00018545,2]
[378567351,1754913147620,-775.91,0.00018545,2]
[378567352,1754913147630,-289.71956049,0.00018545,2]
[378567353,1754913147639,-1242.63,0.00018546,2]
[378567354,1754913147649,-500.0,0.00018547,2]
[378567355,1754913147659,-500.0,0.00018547,2]
[378567356,1754913147669,-1524.28277964,0.00018568,2]
[378567357,1754913147679,-1500.0,0.00018568,2]
[378567358,1754913147688,-587.0,0.00018586,2]
[378567359,1754913147697,-155.0,0.0001859,2]
[378567360,1754913147707,-1216.0,0.00018602,2]
[378567361,1754913147716,-1216.0,0.00018602,2]
[378567362,1754913147726,-1251.04571521,0.00018602,2]
[378567363,1754913147735,-153.6710196,0.00018602,2]
[378567364,1754913147745,-1216.0,0.00018602,2]
[378567365,1754913147756,-1216.0,0.00018602,2]
[378567366,1754913147765,-1146.8321709,0.00018602,2]
[378567367,1754913147775,-309.194123,0.00018624,2]
[378567368,1754913147785,-309.194123,0.00018624,2]
[378567369,1754913147794,-264.870503,0.00018624,2]
[378567370,1754913147804,-264.870503,0.00018624,2]
[378567371,1754913147813,-951.220244,0.00018624,2]
[378567372,1754913147822,-951.220244,0.00018624,2]
[378567373,1754913147833,-151.0,0.00018624,2]
[378567374,1754913147842,-151.0,0.00018624,2]
[378567375,1754913147852,-349.849984,0.00018624,2]
[378567376,1754913147861,-349.849984,0.00018624,2]
[378567377,1754913147871,-154.04177,0.00018624,2]
[378567378,1754913147978,-154.04177,0.00018624,2]
[378567379,1754913147988,-151.0,0.00018624,2]
[378567380,1754913147997,-151.0,0.00018624,2]
[378567381,1754913148007,-516.634903,0.00018624,2]
[378567382,1754913148017,-516.634903,0.00018624,2]
[378567383,1754913148026,-842.21,0.0001863,2]
[378567384,1754913148036,-151.0,0.00018655,2]
[378567385,1754913148046,-451.699342,0.00018655,2]
[378567386,1754913148056,-451.699342,0.00018655,2]
[378567387,1754913148065,-151.0,0.00018655,2]
[378567388,1754913148075,-201.459124,0.00018655,2]
[378567389,1754913148084,-201.459124,0.00018655,2]
[378567390,1754913148094,-644.935252,0.00018655,2]
[378567391,1754913148104,-644.935252,0.00018655,2]
[378567392,1754913148113,-2600.325667,0.00018655,2]
[378567393,1754913148122,-2600.325667,0.00018655,2]
[378567394,1754913148132,-309.194123,0.00018655,2]
[378567395,1754913148141,-309.194123,0.00018655,2]
[378567396,1754913148151,-151.0,0.00018655,2]
[378567397,1754913148160,-233.179466,0.00018655,2]
[378567398,1754913148172,-151.0,0.00018655,2]
[378567399,1754913148182,-233.179466,0.00018655,2]
[378567400,1754913148191,-349.849984,0.00018655,2]
[378567401,1754913148201,-349.849984,0.00018655,2]
[378567402,1754913148210,-154.04177,0.00018655,2]
[378567403,1754913148220,-154.04177,0.00018655,2]
[378567404,1754913148230,-151.0,0.00018655,2]
[378567405,1754913148240,-151.0,0.00018655,2]
[378567406,1754913148249,-151.0,0.00018655,2]
[378567407,1754913148260,-151.0,0.00018655,2]
[378567408,1754913148271,-516.634903,0.00018655,2]
[378567409,1754913148281,-516.634903,0.00018655,2]
[378567410,1754913148290,-9100.15183707,0.00018674,2]
[378567411,1754913148299,-375.51,0.00018767,2]
[378567412,1754913148310,-2351.0,0.00018774,2]
[378567413,1754913148319,-1000.0,0.00018799,2]
[378567414,1754913148328,-1000.0,0.00018799,2]
[378567415,1754913148338,-202.0,0.000188,2]
[378567416,1754913148347,-400.0,0.00018814,2]
[378567417,1754913148357,-914.13,0.00018814,2]
[378567418,1754913148367,-150.0,0.00018814,2]
[378567419,1754913148376,-1959.51,0.00018814,2]
[378567420,1754913148386,-563.57,0.00018814,2]
[378567421,1754913148395,-1025.43,0.00018814,2]
[378567422,1754913148404,-400.0,0.00018815,2]
[378567423,1754913148414,-486.72,0.00018815,2]
[378567424,1754913148423,-400.0,0.00018815,2]
[378567425,1754913148433,-400.0,0.00018815,2]
[378567426,1754913148442,-400.0,0.00018815,2]
[378567427,1754913148451,-400.0,0.00018815,2]
[378567428,1754913148460,-885.25,0.00018815,2]
[378567429,1754913148469,-400.0,0.00018815,2]
[378567430,1754913148478,-782.6,0.00018815,2]
[378567431,1754913148487,-400.0,0.00018815,2]
[378567432,1754913148496,-400.0,0.00018815,2]
[378567433,1754913148505,-539.02,0.00018815,2]
[378567434,1754913148515,-516.56,0.00018815,2]
[378567435,1754913148524,-767.57,0.00018815,2]
[378567436,1754913148533,-682.78,0.00018815,2]
[378567437,1754913148543,-400.0,0.00018815,2]
[378567438,1754913148552,-1077.9,0.00018815,2]
[378567439,1754913148562,-1847.71,0.00018815,2]
[378567440,1754913148571,-629.18,0.00018815,2]
[378567441,1754913148581,-1572.94,0.00018815,2]
[378567442,1754913148590,-400.0,0.00018815,2]
[378567443,1754913148599,-717.66,0.00018815,2]